[Event "Titled Tuesday Blitz April 12 Late 2022"]
[White "Tillyaev, Ulugbek"]
[Black "Sheng, Joshua"]
[WhiteFideId "14202441"]
[BlackFideId "2057360"]
[WhiteElo "2377"]
[BlackElo "2142"]
[Result "0-1"]
[Round "06"]
[TimeControl "180+1"]
[Date "2022.04.12"]
[WhiteClock "0:00:06"]
[BlackClock "0:01:33"]

1. e4 {[%clk 0:03:00]}  c5 {[%clk 0:02:57]} 2. Nf3 {[%clk 0:02:59]}  e6 {[%clk 0:02:58]} 3. Nc3 {[%clk 0:02:56]}  a6 {[%clk 0:02:57]} 4. d4 {[%clk 0:02:54]}  cxd4 {[%clk 0:02:57]} 5. Nxd4 {[%clk 0:02:55]}  Qc7 {[%clk 0:02:58]} 6. g3 {[%clk 0:02:55]}  Bb4 {[%clk 0:02:56]} 7. Bd2 {[%clk 0:02:49]}  Nf6 {[%clk 0:02:54]} 8. Bg2 {[%clk 0:02:48]}  Nc6 {[%clk 0:02:55]} 9. Nde2 {[%clk 0:02:27]}  Be7 {[%clk 0:02:50]} 10. O-O {[%clk 0:02:24]}  d6 {[%clk 0:02:50]} 11. h3 {[%clk 0:02:24]}  b5 {[%clk 0:02:48]} 12. a3 {[%clk 0:02:15]}  Bb7 {[%clk 0:02:48]} 13. f4 {[%clk 0:02:13]}  O-O {[%clk 0:02:48]} 14. g4 {[%clk 0:02:09]}  d5 {[%clk 0:02:48]} 15. e5 {[%clk 0:02:03]}  Bc5+ {[%clk 0:02:37]} 16. Kh1 {[%clk 0:02:01]}  Ne4 {[%clk 0:02:35]} 17. Be1 {[%clk 0:01:31]}  Rad8 {[%clk 0:02:29]} 18. Qd3 {[%clk 0:01:28]}  b4 {[%clk 0:02:13]} 19. Nxe4 {[%clk 0:01:18]}  dxe4 {[%clk 0:02:05]} 20. Qg3 {[%clk 0:00:52]}  bxa3 {[%clk 0:01:59]} 21. bxa3 {[%clk 0:00:53]}  Nd4 {[%clk 0:01:57]} 22. Nxd4 {[%clk 0:00:50]}  Bxd4 {[%clk 0:01:57]} 23. c3 {[%clk 0:00:49]}  Bc5 {[%clk 0:01:57]} 24. f5 {[%clk 0:00:47]}  Rd3 {[%clk 0:01:56]} 25. Qf4 {[%clk 0:00:48]}  Be3 {[%clk 0:01:56]} 26. Qxe4 {[%clk 0:00:35]}  Bxe4 {[%clk 0:01:54]} 27. Bxe4 {[%clk 0:00:36]}  Rd7 {[%clk 0:01:42]} 28. Rf3 {[%clk 0:00:31]}  Bd2 {[%clk 0:01:39]} 29. Bg3 {[%clk 0:00:30]}  Qc4 {[%clk 0:01:39]} 30. Bc2 {[%clk 0:00:24]}  Bxc3 {[%clk 0:01:38]} 31. Raf1 {[%clk 0:00:21]}  Rd2 {[%clk 0:01:34]} 32. Bb1 {[%clk 0:00:06]}  Qd5 {[%clk 0:01:33]} 0-1


[Site "https://www.chess.com"]

[Event "Titled Tuesday Blitz April 12 Late 2022"]
[White "Urazayev, Arystanbek"]
[Black "Mickiewicz, Piotr"]
[WhiteFideId "13709810"]
[BlackFideId "1114891"]
[WhiteElo "2422"]
[BlackElo "2266"]
[Result "1-0"]
[Round "06"]
[TimeControl "180+1"]
[Date "2022.04.13"]
[WhiteClock "0:01:55"]
[BlackClock "0:00:11"]

1. d4 {[%clk 0:03:00]}  Nf6 {[%clk 0:02:58]} 2. c4 {[%clk 0:02:59]}  g6 {[%clk 0:02:59]} 3. Nc3 {[%clk 0:02:59]}  Bg7 {[%clk 0:02:59]} 4. e4 {[%clk 0:03:00]}  d6 {[%clk 0:02:59]} 5. Be2 {[%clk 0:03:01]}  O-O {[%clk 0:02:59]} 6. Be3 {[%clk 0:03:01]}  e5 {[%clk 0:02:58]} 7. d5 {[%clk 0:03:02]}  c6 {[%clk 0:02:58]} 8. h4 {[%clk 0:03:00]}  Na6 {[%clk 0:02:46]} 9. h5 {[%clk 0:02:59]}  Bd7 {[%clk 0:02:44]} 10. h6 {[%clk 0:02:56]}  Bh8 {[%clk 0:02:42]} 11. Nh3 {[%clk 0:02:56]}  cxd5 {[%clk 0:02:39]} 12. cxd5 {[%clk 0:02:57]}  b5 {[%clk 0:02:36]} 13. f3 {[%clk 0:02:54]}  Qb8 {[%clk 0:02:29]} 14. Qd2 {[%clk 0:02:53]}  Rc8 {[%clk 0:02:27]} 15. O-O {[%clk 0:02:53]}  Nc5 {[%clk 0:02:23]} 16. Nf2 {[%clk 0:02:49]}  b4 {[%clk 0:02:21]} 17. Ncd1 {[%clk 0:02:50]}  Bb5 {[%clk 0:02:14]} 18. Nd3 {[%clk 0:02:50]}  Nfd7 {[%clk 0:02:02]} 19. N1f2 {[%clk 0:02:50]}  a5 {[%clk 0:02:00]} 20. Nxc5 {[%clk 0:02:49]}  Nxc5 {[%clk 0:01:58]} 21. Rfc1 {[%clk 0:02:49]}  Bf6 {[%clk 0:01:52]} 22. Ng4 {[%clk 0:02:43]}  Bd8 {[%clk 0:01:41]} 23. Bxb5 {[%clk 0:02:37]}  Qxb5 {[%clk 0:01:39]} 24. Bg5 {[%clk 0:02:37]}  Bb6 {[%clk 0:01:35]} 25. Kh2 {[%clk 0:02:26]}  Nd3 {[%clk 0:01:33]} 26. Rxc8+ {[%clk 0:02:24]}  Rxc8 {[%clk 0:01:33]} 27. Qe2 {[%clk 0:02:23]}  Qc4 {[%clk 0:01:26]} 28. Rd1 {[%clk 0:02:19]}  Nf2 {[%clk 0:01:06]} 29. Nf6+ {[%clk 0:02:07]}  Kh8 {[%clk 0:01:05]} 30. Rc1 {[%clk 0:02:07]}  Qxc1 {[%clk 0:00:53]} 31. Bxc1 {[%clk 0:02:08]}  Rxc1 {[%clk 0:00:51]} 32. Qb5 {[%clk 0:02:08]}  Rh1+ {[%clk 0:00:33]} 33. Kg3 {[%clk 0:02:08]}  Rxh6 {[%clk 0:00:32]} 34. Qxb6 {[%clk 0:02:06]}  Nh1+ {[%clk 0:00:31]} 35. Kg4 {[%clk 0:02:04]}  Rh2 {[%clk 0:00:25]} 36. Qd8+ {[%clk 0:02:01]}  Kg7 {[%clk 0:00:24]} 37. Ne8+ {[%clk 0:02:02]}  Kf8 {[%clk 0:00:15]} 38. Nxd6+ {[%clk 0:02:00]}  Kg7 {[%clk 0:00:15]} 39. Ne8+ {[%clk 0:01:59]}  Kf8 {[%clk 0:00:15]} 40. Kg5 {[%clk 0:01:58]}  Ng3 {[%clk 0:00:11]} 41. Nf6+ {[%clk 0:01:55]} 1-0


[Site "https://www.chess.com"]

[Event "Titled Tuesday Blitz April 12 Late 2022"]
[White "Volkov, Maksim"]
[Black "Miszler, Levente"]
[WhiteFideId "54123070"]
[BlackFideId "763276"]
[WhiteElo "2656"]
[BlackElo "2406"]
[Result "1-0"]
[Round "06"]
[TimeControl "180+1"]
[Date "2022.04.13"]
[WhiteClock "0:00:30"]
[BlackClock "0:00:08"]

1. d4 {[%clk 0:03:00]}  d5 {[%clk 0:02:59]} 2. c4 {[%clk 0:03:01]}  c6 {[%clk 0:02:59]} 3. Nf3 {[%clk 0:03:00]}  Nf6 {[%clk 0:02:59]} 4. g3 {[%clk 0:03:01]}  g6 {[%clk 0:02:59]} 5. Bg2 {[%clk 0:02:47]}  Bg7 {[%clk 0:02:58]} 6. cxd5 {[%clk 0:02:46]}  cxd5 {[%clk 0:02:57]} 7. O-O {[%clk 0:02:46]}  O-O {[%clk 0:02:56]} 8. Nc3 {[%clk 0:02:46]}  Ne4 {[%clk 0:02:53]} 9. Ne5 {[%clk 0:02:45]}  Nxc3 {[%clk 0:02:51]} 10. bxc3 {[%clk 0:02:46]}  Nc6 {[%clk 0:02:52]} 11. Bf4 {[%clk 0:02:46]}  Nxe5 {[%clk 0:02:49]} 12. Bxe5 {[%clk 0:02:46]}  Bxe5 {[%clk 0:02:48]} 13. dxe5 {[%clk 0:02:47]}  Be6 {[%clk 0:02:49]} 14. Qd4 {[%clk 0:02:42]}  b6 {[%clk 0:02:47]} 15. Rfd1 {[%clk 0:02:41]}  Qc7 {[%clk 0:02:45]} 16. Bxd5 {[%clk 0:02:40]}  Bxd5 {[%clk 0:02:44]} 17. Qxd5 {[%clk 0:02:40]}  Qxc3 {[%clk 0:02:43]} 18. Rac1 {[%clk 0:02:40]}  Qa3 {[%clk 0:02:38]} 19. e6 {[%clk 0:02:27]}  fxe6 {[%clk 0:02:29]} 20. Qxe6+ {[%clk 0:02:27]}  Kg7 {[%clk 0:02:30]} 21. Rc7 {[%clk 0:02:23]}  Rf7 {[%clk 0:02:29]} 22. Rd3 {[%clk 0:02:20]}  Qb4 {[%clk 0:02:20]} 23. Rf3 {[%clk 0:02:17]}  Raf8 {[%clk 0:02:12]} 24. Qe5+ {[%clk 0:02:01]}  Kh6 {[%clk 0:01:45]} 25. Qe3+ {[%clk 0:01:56]}  Kg7 {[%clk 0:01:45]} 26. Rxf7+ {[%clk 0:01:52]}  Rxf7 {[%clk 0:01:44]} 27. Rxa7 {[%clk 0:01:51]}  h5 {[%clk 0:01:41]} 28. Kg2 {[%clk 0:01:49]}  h4 {[%clk 0:01:35]} 29. Qe5+ {[%clk 0:01:40]}  Kh7 {[%clk 0:01:28]} 30. Ra8 {[%clk 0:01:38]}  Rg7 {[%clk 0:01:18]} 31. Rb8 {[%clk 0:01:24]}  hxg3 {[%clk 0:01:02]} 32. hxg3 {[%clk 0:01:23]}  Qc4 {[%clk 0:00:40]} 33. a3 {[%clk 0:00:49]}  Qc6+ {[%clk 0:00:38]} 34. Kh2 {[%clk 0:00:48]}  Qc5 {[%clk 0:00:19]} 35. Qxc5 {[%clk 0:00:47]}  bxc5 {[%clk 0:00:20]} 36. Rc8 {[%clk 0:00:47]}  Rf7 {[%clk 0:00:20]} 37. f4 {[%clk 0:00:39]}  e5 {[%clk 0:00:14]} 38. fxe5 {[%clk 0:00:35]}  Rf2+ {[%clk 0:00:14]} 39. Kh3 {[%clk 0:00:36]}  Rxe2 {[%clk 0:00:14]} 40. Rxc5 {[%clk 0:00:36]}  Re3 {[%clk 0:00:14]} 41. a4 {[%clk 0:00:36]}  Kh6 {[%clk 0:00:15]} 42. a5 {[%clk 0:00:33]}  Kg5 {[%clk 0:00:09]} 43. a6 {[%clk 0:00:33]}  Ra3 {[%clk 0:00:08]} 44. Rc6 {[%clk 0:00:33]}  Kf5 {[%clk 0:00:09]} 45. e6 {[%clk 0:00:32]}  Kf6 {[%clk 0:00:09]} 46. Kg4 {[%clk 0:00:31]}  Ra4+ {[%clk 0:00:09]} 47. Kf3 {[%clk 0:00:31]}  Kf5 {[%clk 0:00:08]} 48. e7 {[%clk 0:00:29]}  Ra3+ {[%clk 0:00:08]} 49. Kf2 {[%clk 0:00:29]}  Ra2+ {[%clk 0:00:08]} 50. Ke3 {[%clk 0:00:29]}  Ra3+ {[%clk 0:00:08]} 51. Kd4 {[%clk 0:00:30]} 1-0


[Site "https://www.chess.com"]

[Event "Titled Tuesday Blitz April 12 Late 2022"]
[White "Wang, Jalen"]
[Black "Narayanan.S.L"]
[WhiteFideId "2078058"]
[BlackFideId "5058422"]
[WhiteElo "2084"]
[BlackElo "2494"]
[Result "1-0"]
[Round "06"]
[TimeControl "180+1"]
[Date "2022.04.12"]
[WhiteClock "0:00:23"]
[BlackClock "0:00:31"]

1. d4 {[%clk 0:02:57]}  g6 {[%clk 0:03:00]} 2. Bf4 {[%clk 0:02:56]}  Bg7 {[%clk 0:03:00]} 3. e3 {[%clk 0:02:57]}  d6 {[%clk 0:03:00]} 4. Nc3 {[%clk 0:02:57]}  Nd7 {[%clk 0:02:59]} 5. h4 {[%clk 0:02:58]}  e5 {[%clk 0:02:58]} 6. dxe5 {[%clk 0:02:59]}  dxe5 {[%clk 0:02:58]} 7. Bg3 {[%clk 0:02:59]}  Ngf6 {[%clk 0:02:59]} 8. h5 {[%clk 0:03:00]}  O-O {[%clk 0:02:54]} 9. hxg6 {[%clk 0:03:00]}  hxg6 {[%clk 0:02:55]} 10. Nf3 {[%clk 0:03:00]}  Qe7 {[%clk 0:02:54]} 11. Bc4 {[%clk 0:03:00]}  a6 {[%clk 0:02:51]} 12. Nh4 {[%clk 0:02:53]}  Qb4 {[%clk 0:02:45]} 13. Nxg6 {[%clk 0:02:43]}  Re8 {[%clk 0:02:44]} 14. Bb3 {[%clk 0:02:43]}  Nc5 {[%clk 0:02:39]} 15. Nxe5 {[%clk 0:02:35]}  Nxb3 {[%clk 0:02:38]} 16. axb3 {[%clk 0:02:35]}  Bf5 {[%clk 0:02:39]} 17. Nd3 {[%clk 0:02:24]}  Qe7 {[%clk 0:02:31]} 18. Bh4 {[%clk 0:02:14]}  Rad8 {[%clk 0:02:30]} 19. Qe2 {[%clk 0:02:11]}  Qd7 {[%clk 0:02:03]} 20. Bxf6 {[%clk 0:02:02]}  Bxf6 {[%clk 0:02:02]} 21. O-O-O {[%clk 0:02:00]}  Qe7 {[%clk 0:01:43]} 22. Qh5 {[%clk 0:01:10]}  Bg6 {[%clk 0:01:41]} 23. Nd5 {[%clk 0:01:07]}  Rxd5 {[%clk 0:01:21]} 24. Qxd5 {[%clk 0:01:05]}  c6 {[%clk 0:01:21]} 25. Qc5 {[%clk 0:01:00]}  Qe4 {[%clk 0:01:20]} 26. Nf4 {[%clk 0:00:54]}  Re5 {[%clk 0:01:19]} 27. Qc4 {[%clk 0:00:54]}  Ra5 {[%clk 0:00:54]} 28. Nxg6 {[%clk 0:00:35]}  Qxg6 {[%clk 0:00:54]} 29. Kb1 {[%clk 0:00:31]}  Qf5 {[%clk 0:00:41]} 30. f3 {[%clk 0:00:26]}  Qe5 {[%clk 0:00:35]} 31. Qd4 {[%clk 0:00:24]}  Qe7 {[%clk 0:00:32]} 32. Qg4+ {[%clk 0:00:24]}  Kf8 {[%clk 0:00:32]} 33. Qc8+ {[%clk 0:00:22]}  Kg7 {[%clk 0:00:32]} 34. Qh8+ {[%clk 0:00:22]}  Kg6 {[%clk 0:00:32]} 35. Qh7+ {[%clk 0:00:22]}  Kg5 {[%clk 0:00:31]} 36. Rh5# {[%clk 0:00:23]} 1-0


[Site "https://www.chess.com"]

[Event "Titled Tuesday Blitz April 12 Late 2022"]
[White "Yanchenko, Roman"]
[Black "Bluebaum, Matthias"]
[WhiteFideId "4137329"]
[BlackFideId "24651516"]
[WhiteElo "2514"]
[BlackElo "2550"]
[Result "1-0"]
[Round "06"]
[TimeControl "180+1"]
[Date "2022.04.12"]
[WhiteClock "0:00:07"]
[BlackClock "0:00:01"]

1. d4 {[%clk 0:02:57]}  Nf6 {[%clk 0:02:59]} 2. c4 {[%clk 0:02:57]}  e6 {[%clk 0:02:59]} 3. Nf3 {[%clk 0:02:58]}  d5 {[%clk 0:03:00]} 4. Nc3 {[%clk 0:02:58]}  Bb4 {[%clk 0:03:00]} 5. Bg5 {[%clk 0:02:58]}  h6 {[%clk 0:03:00]} 6. Bxf6 {[%clk 0:02:58]}  Qxf6 {[%clk 0:03:01]} 7. e3 {[%clk 0:02:58]}  O-O {[%clk 0:03:01]} 8. Bd3 {[%clk 0:02:57]}  dxc4 {[%clk 0:03:01]} 9. Bxc4 {[%clk 0:02:58]}  c5 {[%clk 0:03:01]} 10. O-O {[%clk 0:02:56]}  cxd4 {[%clk 0:03:02]} 11. Ne4 {[%clk 0:02:55]}  Qe7 {[%clk 0:03:02]} 12. Nxd4 {[%clk 0:02:54]}  Bd7 {[%clk 0:03:02]} 13. a3 {[%clk 0:02:53]}  Ba5 {[%clk 0:03:02]} 14. b4 {[%clk 0:02:50]}  Bb6 {[%clk 0:03:01]} 15. Rc1 {[%clk 0:02:44]}  Nc6 {[%clk 0:03:01]} 16. Nf3 {[%clk 0:02:38]}  Rfd8 {[%clk 0:02:59]} 17. Qd6 {[%clk 0:02:38]}  Be8 {[%clk 0:02:57]} 18. Qg3 {[%clk 0:02:24]}  Bc7 {[%clk 0:02:54]} 19. Qh3 {[%clk 0:02:22]}  Ne5 {[%clk 0:02:48]} 20. Nxe5 {[%clk 0:02:17]}  Bxe5 {[%clk 0:02:49]} 21. Qh5 {[%clk 0:02:10]}  Bb2 {[%clk 0:02:46]} 22. Rb1 {[%clk 0:02:06]}  Bxa3 {[%clk 0:02:44]} 23. Qa5 {[%clk 0:02:06]}  Rac8 {[%clk 0:02:02]} 24. Be2 {[%clk 0:01:27]}  f5 {[%clk 0:02:01]} 25. Qxa3 {[%clk 0:01:06]}  fxe4 {[%clk 0:02:00]} 26. Qxa7 {[%clk 0:01:06]}  Rd2 {[%clk 0:02:01]} 27. Bg4 {[%clk 0:00:58]}  Rcc2 {[%clk 0:01:51]} 28. Qb6 {[%clk 0:00:55]}  Bf7 {[%clk 0:01:24]} 29. Rbd1 {[%clk 0:00:41]}  Rd3 {[%clk 0:01:15]} 30. b5 {[%clk 0:00:26]}  e5 {[%clk 0:01:14]} 31. Bf5 {[%clk 0:00:21]}  Bd5 {[%clk 0:00:51]} 32. Rxd3 {[%clk 0:00:20]}  exd3 {[%clk 0:00:52]} 33. Bxd3 {[%clk 0:00:20]}  Rd2 {[%clk 0:00:53]} 34. Qg6 {[%clk 0:00:20]}  e4 {[%clk 0:00:49]} 35. Bb1 {[%clk 0:00:20]}  Qe5 {[%clk 0:00:43]} 36. Rc1 {[%clk 0:00:19]}  Bc4 {[%clk 0:00:06]} 37. Bxe4 {[%clk 0:00:17]}  Kf8 {[%clk 0:00:04]} 38. Bxb7 {[%clk 0:00:15]}  Qb2 {[%clk 0:00:03]} 39. Qf5+ {[%clk 0:00:15]}  Ke7 {[%clk 0:00:03]} 40. Re1 {[%clk 0:00:13]}  Be6 {[%clk 0:00:02]} 41. Qc5+ {[%clk 0:00:12]}  Kf7 {[%clk 0:00:03]} 42. Bc8 {[%clk 0:00:10]}  Bxc8 {[%clk 0:00:02]} 43. Qxc8 {[%clk 0:00:09]}  Rxf2 {[%clk 0:00:03]} 44. Qg4 {[%clk 0:00:06]}  Ke7 {[%clk 0:00:02]} 45. Qe4+ {[%clk 0:00:06]}  Kf8 {[%clk 0:00:02]} 46. b6 {[%clk 0:00:07]}  Kg8 {[%clk 0:00:01]} 47. b7 {[%clk 0:00:07]} 1-0


[Site "https://www.chess.com"]

[Event "Titled Tuesday Blitz April 12 Late 2022"]
[White "Ambartsumova, Karina"]
[Black "Rustemov, Alexander"]
[WhiteFideId "4166299"]
[BlackFideId "4119002"]
[WhiteElo "2262"]
[BlackElo "2782"]
[Result "1-0"]
[Round "07"]
[TimeControl "180+1"]
[Date "2022.04.12"]
[WhiteClock "0:00:17"]
[BlackClock "0:00:02"]

1. d4 {[%clk 0:03:00]}  d5 {[%clk 0:02:58]} 2. Nf3 {[%clk 0:03:00]}  Nf6 {[%clk 0:02:57]} 3. c4 {[%clk 0:03:00]}  c6 {[%clk 0:02:56]} 4. g3 {[%clk 0:03:00]}  dxc4 {[%clk 0:02:56]} 5. Bg2 {[%clk 0:02:59]}  b5 {[%clk 0:02:56]} 6. Ne5 {[%clk 0:02:59]}  Bb7 {[%clk 0:02:56]} 7. O-O {[%clk 0:02:58]}  e6 {[%clk 0:02:56]} 8. Nc3 {[%clk 0:02:48]}  a6 {[%clk 0:02:55]} 9. a4 {[%clk 0:02:38]}  Qb6 {[%clk 0:02:12]} 10. Bf4 {[%clk 0:01:59]}  Be7 {[%clk 0:02:11]} 11. Ne4 {[%clk 0:01:46]}  O-O {[%clk 0:02:08]} 12. a5 {[%clk 0:01:35]}  Qd8 {[%clk 0:02:05]} 13. Nc5 {[%clk 0:01:35]}  Qc8 {[%clk 0:01:53]} 14. Qc2 {[%clk 0:01:30]}  Rd8 {[%clk 0:01:37]} 15. Rfd1 {[%clk 0:01:23]}  Nd5 {[%clk 0:01:36]} 16. Bd2 {[%clk 0:00:48]}  Ra7 {[%clk 0:01:10]} 17. e4 {[%clk 0:00:31]}  Nf6 {[%clk 0:01:09]} 18. Bc3 {[%clk 0:00:28]}  Ba8 {[%clk 0:01:06]} 19. Bh3 {[%clk 0:00:26]}  Nbd7 {[%clk 0:01:05]} 20. Nxf7 {[%clk 0:00:25]}  Kxf7 {[%clk 0:01:04]} 21. Bxe6+ {[%clk 0:00:23]}  Kf8 {[%clk 0:01:01]} 22. e5 {[%clk 0:00:24]}  Qc7 {[%clk 0:00:33]} 23. Nxd7+ {[%clk 0:00:24]}  Rxd7 {[%clk 0:00:30]} 24. exf6 {[%clk 0:00:23]}  Bxf6 {[%clk 0:00:24]} 25. Qxh7 {[%clk 0:00:19]}  Ke7 {[%clk 0:00:23]} 26. Bxd7 {[%clk 0:00:18]}  Qxd7 {[%clk 0:00:20]} 27. Qg8 {[%clk 0:00:18]}  Kd6 {[%clk 0:00:17]} 28. Bb4+ {[%clk 0:00:18]}  Kc7 {[%clk 0:00:16]} 29. Bc5 {[%clk 0:00:18]}  Qd8 {[%clk 0:00:02]} 30. Bb6+ {[%clk 0:00:17]} 1-0


[Site "https://www.chess.com"]

[Event "Titled Tuesday Blitz April 12 Late 2022"]
[White "Antonova, Nadezhda"]
[Black "Petrovic, Aleksa"]
[WhiteFideId "14700182"]
[BlackFideId "967629"]
[WhiteElo "1789"]
[BlackElo "2198"]
[Result "0-1"]
[Round "07"]
[TimeControl "180+1"]
[Date "2022.04.13"]
[WhiteClock "0:00:01"]
[BlackClock "0:00:03"]

1. Nf3 {[%clk 0:02:59]}  g6 {[%clk 0:02:55]} 2. d4 {[%clk 0:02:56]}  Nf6 {[%clk 0:02:52]} 3. b3 {[%clk 0:02:55]}  c5 {[%clk 0:02:48]} 4. dxc5 {[%clk 0:02:52]}  Qa5+ {[%clk 0:02:40]} 5. Bd2 {[%clk 0:02:50]}  Qxc5 {[%clk 0:02:38]} 6. c3 {[%clk 0:02:45]}  Bg7 {[%clk 0:02:30]} 7. e3 {[%clk 0:02:40]}  Ne4 {[%clk 0:02:24]} 8. Be2 {[%clk 0:02:39]}  Nxc3 {[%clk 0:02:16]} 9. Nxc3 {[%clk 0:02:31]}  O-O {[%clk 0:01:54]} 10. Rc1 {[%clk 0:02:27]}  Qa5 {[%clk 0:01:53]} 11. O-O {[%clk 0:02:22]}  Nc6 {[%clk 0:01:50]} 12. Bc4 {[%clk 0:02:16]}  e6 {[%clk 0:01:38]} 13. h3 {[%clk 0:02:04]}  Qd8 {[%clk 0:01:35]} 14. Be2 {[%clk 0:01:58]}  a6 {[%clk 0:01:30]} 15. Ne4 {[%clk 0:01:55]}  d5 {[%clk 0:01:27]} 16. Nc5 {[%clk 0:01:53]}  b6 {[%clk 0:01:25]} 17. Nd3 {[%clk 0:01:51]}  Bb7 {[%clk 0:01:19]} 18. Bc3 {[%clk 0:01:48]}  f6 {[%clk 0:01:13]} 19. Nb4 {[%clk 0:01:41]}  Ne7 {[%clk 0:01:06]} 20. Nd4 {[%clk 0:01:36]}  Qd7 {[%clk 0:00:59]} 21. a4 {[%clk 0:01:23]}  Rfc8 {[%clk 0:00:51]} 22. Bb2 {[%clk 0:01:21]}  a5 {[%clk 0:00:50]} 23. Bb5 {[%clk 0:01:16]}  Qd6 {[%clk 0:00:48]} 24. Nd3 {[%clk 0:01:15]}  e5 {[%clk 0:00:46]} 25. Ne2 {[%clk 0:01:13]}  Nc6 {[%clk 0:00:32]} 26. Nc3 {[%clk 0:00:53]}  Nb4 {[%clk 0:00:25]} 27. Nxb4 {[%clk 0:00:51]}  axb4 {[%clk 0:00:24]} 28. Na2 {[%clk 0:00:45]}  Rxc1 {[%clk 0:00:17]} 29. Qxc1 {[%clk 0:00:44]}  Rc8 {[%clk 0:00:17]} 30. Qd2 {[%clk 0:00:45]}  Bf8 {[%clk 0:00:17]} 31. Rd1 {[%clk 0:00:39]}  d4 {[%clk 0:00:13]} 32. exd4 {[%clk 0:00:32]}  Qd5 {[%clk 0:00:13]} 33. f3 {[%clk 0:00:19]}  Qxb3 {[%clk 0:00:13]} 34. Nc1 {[%clk 0:00:15]}  Qd5 {[%clk 0:00:09]} 35. dxe5 {[%clk 0:00:13]}  Bc5+ {[%clk 0:00:08]} 36. Kh1 {[%clk 0:00:12]}  Qxd2 {[%clk 0:00:08]} 37. Rxd2 {[%clk 0:00:12]}  Be3 {[%clk 0:00:08]} 38. Rd1 {[%clk 0:00:10]}  Rc2 {[%clk 0:00:06]} 39. exf6 {[%clk 0:00:05]}  Kf7 {[%clk 0:00:05]} 40. Nd3 {[%clk 0:00:04]}  Bd5 {[%clk 0:00:03]} 41. Nxb4 {[%clk 0:00:03]}  Rxb2 {[%clk 0:00:04]} 42. Nxd5 {[%clk 0:00:03]}  Bc5 {[%clk 0:00:03]} 43. Nc7 {[%clk 0:00:03]}  Kxf6 {[%clk 0:00:03]} 44. Nd5+ {[%clk 0:00:02]}  Kf5 {[%clk 0:00:03]} 45. Ne3+ {[%clk 0:00:02]}  Bxe3 {[%clk 0:00:03]} 46. g4+ {[%clk 0:00:02]}  Kf4 {[%clk 0:00:03]} 47. Bc6 {[%clk 0:00:02]}  Kg3 {[%clk 0:00:04]} 48. f4 {[%clk 0:00:01]}  Rh2# {[%clk 0:00:03]} 0-1


[Site "https://www.chess.com"]

[Event "Titled Tuesday Blitz April 12 Late 2022"]
[White "Bachmann, Axel"]
[Black "Koziorowicz, Michal"]
[WhiteFideId "3700488"]
[BlackFideId "21809194"]
[WhiteElo "2487"]
[BlackElo "2625"]
[Result "0-1"]
[Round "07"]
[TimeControl "180+1"]
[Date "2022.04.13"]
[WhiteClock "0:00:07"]
[BlackClock "0:01:23"]

1. d4 {[%clk 0:03:00]}  e5 {[%clk 0:02:56]} 2. dxe5 {[%clk 0:03:00]}  Nc6 {[%clk 0:02:56]} 3. Nf3 {[%clk 0:03:00]}  Qe7 {[%clk 0:02:57]} 4. Bg5 {[%clk 0:02:54]}  Qb4+ {[%clk 0:02:54]} 5. Nc3 {[%clk 0:02:54]}  Qxb2 {[%clk 0:02:54]} 6. Bd2 {[%clk 0:02:48]}  Bb4 {[%clk 0:02:25]} 7. Rb1 {[%clk 0:02:46]}  Qa3 {[%clk 0:02:26]} 8. Rb3 {[%clk 0:02:35]}  Qa5 {[%clk 0:02:22]} 9. e4 {[%clk 0:02:33]}  Nge7 {[%clk 0:02:19]} 10. Nd5 {[%clk 0:02:25]}  Bxd2+ {[%clk 0:02:17]} 11. Qxd2 {[%clk 0:02:25]}  Qxd2+ {[%clk 0:02:15]} 12. Kxd2 {[%clk 0:02:24]}  Kd8 {[%clk 0:02:15]} 13. Bd3 {[%clk 0:02:02]}  Ng6 {[%clk 0:02:12]} 14. Ng5 {[%clk 0:01:44]}  Ngxe5 {[%clk 0:02:10]} 15. f4 {[%clk 0:01:43]}  h6 {[%clk 0:02:10]} 16. Nf3 {[%clk 0:01:33]}  Nxf3+ {[%clk 0:02:05]} 17. gxf3 {[%clk 0:01:34]}  Nd4 {[%clk 0:02:06]} 18. Rbb1 {[%clk 0:01:27]}  Nxf3+ {[%clk 0:02:06]} 19. Ke3 {[%clk 0:01:27]}  Nh4 {[%clk 0:02:06]} 20. f5 {[%clk 0:01:18]}  g5 {[%clk 0:02:05]} 21. Rhg1 {[%clk 0:00:45]}  c6 {[%clk 0:02:05]} 22. Nf6 {[%clk 0:00:39]}  d6 {[%clk 0:02:04]} 23. a4 {[%clk 0:00:36]}  Ke7 {[%clk 0:02:04]} 24. Ng4 {[%clk 0:00:34]}  f6 {[%clk 0:02:04]} 25. a5 {[%clk 0:00:33]}  Rb8 {[%clk 0:02:02]} 26. Rb2 {[%clk 0:00:29]}  h5 {[%clk 0:02:01]} 27. Nf2 {[%clk 0:00:28]}  Kd7 {[%clk 0:01:56]} 28. Rgb1 {[%clk 0:00:21]}  Ng2+ {[%clk 0:01:56]} 29. Kd2 {[%clk 0:00:20]}  Nf4 {[%clk 0:01:56]} 30. Ba6 {[%clk 0:00:19]}  Kc7 {[%clk 0:01:56]} 31. Nd3 {[%clk 0:00:16]}  Nxd3 {[%clk 0:01:56]} 32. cxd3 {[%clk 0:00:16]}  Re8 {[%clk 0:01:54]} 33. Bc4 {[%clk 0:00:15]}  b5 {[%clk 0:01:52]} 34. Bf7 {[%clk 0:00:12]}  Rh8 {[%clk 0:01:51]} 35. Rg1 {[%clk 0:00:11]}  Bd7 {[%clk 0:01:48]} 36. Rc1 {[%clk 0:00:11]}  a6 {[%clk 0:01:45]} 37. Bd5 {[%clk 0:00:11]}  Rbc8 {[%clk 0:01:44]} 38. Rbc2 {[%clk 0:00:11]}  Kb7 {[%clk 0:01:43]} 39. Bf7 {[%clk 0:00:09]}  c5 {[%clk 0:01:32]} 40. Ke3 {[%clk 0:00:07]}  Bc6 {[%clk 0:01:30]} 41. Be6 {[%clk 0:00:08]}  Rc7 {[%clk 0:01:30]} 42. Rb1 {[%clk 0:00:08]}  g4 {[%clk 0:01:27]} 43. d4 {[%clk 0:00:08]}  cxd4+ {[%clk 0:01:26]} 44. Kxd4 {[%clk 0:00:09]}  h4 {[%clk 0:01:26]} 45. Rbc1 {[%clk 0:00:09]}  g3 {[%clk 0:01:23]} 46. hxg3 {[%clk 0:00:07]}  hxg3 {[%clk 0:01:23]} 47. Bd5 {[%clk 0:00:07]}  Rhc8 {[%clk 0:01:21]} 48. Ke3 {[%clk 0:00:04]}  Bxd5 {[%clk 0:01:21]} 49. Rxc7+ {[%clk 0:00:05]}  Rxc7 {[%clk 0:01:22]} 50. Rxc7+ {[%clk 0:00:05]}  Kxc7 {[%clk 0:01:21]} 51. exd5 {[%clk 0:00:06]}  b4 {[%clk 0:01:22]} 52. Kf3 {[%clk 0:00:06]}  b3 {[%clk 0:01:22]} 53. Kxg3 {[%clk 0:00:07]}  b2 {[%clk 0:01:23]} 0-1


[Site "https://www.chess.com"]